[Event "FIDE Womens Grand Swiss 2021"]
[Site "Riga"]
[Date "2021.10.28"]
[Round "2.9"]
[White "Zhu, Jiner"]
[Black "Melia, Salome"]
[Result "1-0"]
[ECO "B33"]
[WhiteElo "2455"]
[BlackElo "2371"]
[Annotator "ChessBase"]
[PlyCount "113"]
[EventDate "2021.10.27"]
[EventType "swiss"]
[EventCountry "LAT"]
[Tiebreak "Cut1 Buchholz+Sonneborn-Berger (Swiss)"]
[SourceTitle "playchess.com"]
[Source "ChessBase"]
[SourceQuality "1"]
[TimeControl "40/6000+30:20/3000+30:900+30"]

1. e4 {[%emt 0:10:07]} c5 {[%emt 0:10:06]} 2. Nf3 {[%emt 0:00:05]} Nc6 {
[%emt 0:00:05]} 3. d4 {[%emt 0:00:09]} cxd4 {[%emt 0:00:02]} 4. Nxd4 {[%emt 0:
00:08]} Nf6 {[%emt 0:00:05]} 5. Nc3 {[%emt 0:00:12]} e5 {[%emt 0:00:04]} 6.
Ndb5 {[%emt 0:00:09]} d6 {[%emt 0:00:16]} 7. Bg5 {[%emt 0:00:19]} a6 {[%emt 0:
00:06]} 8. Na3 {[%emt 0:00:06]} b5 {[%emt 0:00:12]} 9. Nd5 {[%emt 0:00:18]} Be7
{[%emt 0:00:05]} 10. Bxf6 {[%emt 0:00:07]} Bxf6 {[%emt 0:00:05]} 11. c3 {
[%emt 0:00:12]} O-O {[%emt 0:01:51]} 12. Nc2 {[%emt 0:00:18]} Bg5 {[%emt 0:00:
20]} 13. a4 {[%emt 0:00:20]} bxa4 {[%emt 0:00:04]} 14. Rxa4 {[%emt 0:00:07]} a5
{[%emt 0:00:15]} 15. Bc4 {[%emt 0:00:30]} Rb8 {[%emt 0:00:06]} 16. b3 {[%emt 0:
00:08]} Kh8 {[%emt 0:00:47]} 17. Ra2 {[%emt 0:05:24]} f5 {[%emt 0:14:53]} 18.
exf5 {[%emt 0:00:51]} Bxf5 {[%emt 0:00:06]} 19. O-O {[%emt 0:03:45]} Qd7 {
[%emt 0:08:48]} 20. Qe2 {[%emt 0:06:33]} Bg4 {[%emt 0:11:39]} 21. f3 {[%emt 0:
01:31]} Bf5 {[%emt 0:00:17]} 22. Kh1 {[%emt 0:01:52]} Bg6 {[%emt 0:06:38]} 23.
Nce3 {[%emt 0:11:13]} Rfe8 {[%emt 0:05:34]} 24. Nd1 {[%emt 0:09:22]} Bd8 {
[%emt 0:05:28]} 25. Nf2 {[%emt 0:01:19]} Ne7 {[%emt 0:00:28]} 26. Nxe7 {
[%emt 0:05:11]} Qxe7 {[%emt 0:03:13]} 27. Ne4 {[%emt 0:00:26]} Bc7 {[%emt 0:04:
18]} 28. Rd1 {[%emt 0:04:29]} Rf8 {[%emt 0:03:55]} 29. Rad2 {[%emt 0:03:23]}
Rbd8 {[%emt 0:04:20]} 30. Bd5 {[%emt 0:02:24]} Rf4 {[%emt 0:00:59]} 31. Qc4 {
[%emt 0:04:11]} Rb8 {[%emt 0:03:31]} 32. b4 {[%emt 0:02:45]} axb4 {[%emt 0:01:
31]} 33. cxb4 {[%emt 0:00:08]} Bb6 {[%emt 0:01:03]} 34. Ra2 {[%emt 0:01:25]}
Rff8 {[%emt 0:02:32]} 35. Ra6 {[%emt 0:01:57]} Bxe4 {[%emt 0:10:34]} 36. Bxe4 {
[%emt 0:00:21]} Bd4 {[%emt 0:01:38]} 37. b5 {[%emt 0:00:55]} Bc5 {[%emt 0:01:
59]} 38. Rb1 {[%emt 0:04:46]} Qd8 {[%emt 0:03:07]} 39. g3 {[%emt 0:01:06]} g6 {
[%emt 0:02:47]} 40. Kg2 {[%emt 0:02:10]} Kg7 {[%emt 0:01:22]} 41. Qd3 {[%emt 0:
52:09]} Bb6 {[%emt 0:52:26]} 42. h4 {[%emt 0:05:47]} Qc7 {[%emt 0:00:00]} 43.
Bc6 {[%emt 0:00:00]} Rfd8 {[%emt 0:00:00]} 44. Ra2 {[%emt 0:00:00]} Qf7 {
[%emt 0:00:00]} 45. Bd5 {[%emt 0:00:00]} Qf5 {[%emt 0:00:00]} 46. Qb3 {[%emt 0:
00:00]} Rf8 {[%emt 0:00:00]} 47. Rc1 {[%emt 0:00:00]} g5 {[%emt 0:04:44]} 48.
Be4 {[%emt 0:00:00]} Qf6 {[%emt 0:00:12]} 49. hxg5 {[%emt 0:00:00]} Qxg5 {
[%emt 0:00:02]} 50. Rc6 {[%emt 0:00:00]} Kh8 {[%emt 0:00:46]} 51. Rxd6 {
[%emt 0:00:00]} Rg8 {[%emt 0:00:02]} 52. g4 {[%emt 0:00:00]} Qc1 {[%emt 0:02:
22]} 53. Rd1 {[%emt 0:00:00]} Qf4 {[%emt 0:00:31]} 54. Qe6 {[%emt 0:00:00]}
Rge8 {[%emt 0:00:44]} 55. Qd7 {[%emt 0:00:00]} Qh6 {[%emt 0:00:31]} 56. Rh1 {
[%emt 0:00:00]} Rbd8 {[%emt 0:00:27]} 57. Qxe8+ 1-0

[Event "FIDE Womens Grand Swiss 2021"]
[Site "Riga"]
[Date "2021.10.28"]
[Round "2.11"]
[White "Divya Deshmukh"]
[Black "Harika, Dronavalli"]
[Result "0-1"]
[ECO "C48"]
[WhiteElo "2305"]
[BlackElo "2511"]
[Annotator "ChessBase"]
[PlyCount "84"]
[EventDate "2021.10.27"]
[EventType "swiss"]
[EventCountry "LAT"]
[Tiebreak "Cut1 Buchholz+Sonneborn-Berger (Swiss)"]
[SourceTitle "playchess.com"]
[Source "ChessBase"]
[SourceQuality "1"]
[TimeControl "40/6000+30:20/3000+30:900+30"]

1. e4 {[%emt 0:10:03]} e5 {[%emt 0:10:05]} 2. Nf3 {[%emt 0:00:05]} Nc6 {
[%emt 0:00:06]} 3. Nc3 {[%emt 0:00:03]} Nf6 {[%emt 0:00:16]} 4. Bb5 {[%emt 0:
00:05]} Bd6 {[%emt 0:00:14]} 5. d3 {[%emt 0:00:45]} O-O {[%emt 0:00:44]} 6. Bg5
{[%emt 0:06:31]} Be7 {[%emt 0:01:32]} 7. h3 {[%emt 0:01:32]} Nd4 {[%emt 0:17:
15]} 8. Nxd4 {[%emt 0:21:30]} exd4 {[%emt 0:00:22]} 9. Bxf6 {[%emt 0:00:03]}
Bxf6 {[%emt 0:00:24]} 10. Ne2 {[%emt 0:00:37]} d5 {[%emt 0:05:37]} 11. O-O {
[%emt 0:01:41]} a6 {[%emt 0:01:29]} 12. Ba4 {[%emt 0:00:31]} dxe4 {[%emt 0:01:
24]} 13. dxe4 {[%emt 0:00:02]} b5 {[%emt 0:00:06]} 14. Bb3 {[%emt 0:00:13]} Bb7
{[%emt 0:00:05]} 15. Ng3 {[%emt 0:13:30]} c5 {[%emt 0:01:09]} 16. a4 {[%emt 0:
00:04]} c4 {[%emt 0:00:47]} 17. Ba2 {[%emt 0:00:02]} Re8 {[%emt 0:03:07]} 18.
b3 {[%emt 0:04:58]} d3 {[%emt 0:20:40]} 19. Rb1 {[%emt 0:02:00]} dxc2 {[%emt 0:
04:52]} 20. Qxc2 {[%emt 0:00:49]} c3 {[%emt 0:04:42]} 21. b4 {[%emt 0:13:43]}
bxa4 {[%emt 0:00:18]} 22. Rbd1 {[%emt 0:18:29]} Qc7 {[%emt 0:03:49]} 23. Qxa4 {
[%emt 0:00:40]} Bc6 {[%emt 0:03:22]} 24. Qc2 {[%emt 0:01:01]} Rab8 {[%emt 0:01:
01]} 25. Rb1 {[%emt 0:09:07]} Red8 {[%emt 0:02:06]} 26. Bd5 {[%emt 0:02:16]}
Bxd5 {[%emt 0:04:00]} 27. exd5 {[%emt 0:00:01]} Rxd5 {[%emt 0:00:07]} 28. Ne4 {
[%emt 0:00:02]} Bd4 {[%emt 0:00:43]} 29. Nd2 {[%emt 0:02:02]} h6 {[%emt 0:05:
32]} 30. Nf3 {[%emt 0:01:09]} Bf6 {[%emt 0:00:09]} 31. Rfe1 {[%emt 0:00:26]} g6
{[%emt 0:01:13]} 32. Ra1 {[%emt 0:01:59]} Rd6 {[%emt 0:00:37]} 33. Qa4 {
[%emt 0:00:29]} Kg7 {[%emt 0:00:24]} 34. Nh2 {[%emt 0:00:28]} Qc4 {[%emt 0:03:
19]} 35. Ng4 {[%emt 0:00:24]} Qxb4 {[%emt 0:05:11]} 36. Qa2 {[%emt 0:00:31]}
Qc5 {[%emt 0:02:21]} 37. Rac1 {[%emt 0:00:35]} h5 {[%emt 0:00:31]} 38. Nxf6 {
[%emt 0:00:31]} Rxf6 {[%emt 0:00:04]} 39. Rc2 {[%emt 0:00:32]} Qd4 {[%emt 0:00:
34]} 40. Rec1 {[%emt 0:00:29]} Rb2 {[%emt 0:00:28]} 41. Rxb2 {[%emt 0:50:16]}
cxb2 {[%emt 0:50:05]} 42. Rf1 {[%emt 0:00:05]} a5 {[%emt 0:00:28]} 0-1

[Event "FIDE Womens Grand Swiss 2021"]
[Site "Riga"]
[Date "2021.10.28"]
[Round "2.12"]
[White "Saduakassova, Dinara"]
[Black "Maltsevskaya, Aleksandra"]
[Result "1/2-1/2"]
[ECO "A06"]
[WhiteElo "2491"]
[BlackElo "2411"]
[Annotator "ChessBase"]
[PlyCount "87"]
[EventDate "2021.10.27"]
[EventType "swiss"]
[EventCountry "LAT"]
[Tiebreak "Cut1 Buchholz+Sonneborn-Berger (Swiss)"]
[SourceTitle "playchess.com"]
[Source "ChessBase"]
[SourceQuality "1"]
[TimeControl "40/6000+30:20/3000+30:900+30"]

1. Nf3 {[%emt 0:10:29]} d5 {[%emt 0:10:45]} 2. g3 {[%emt 0:00:08]} c6 {[%emt 0:
03:44]} 3. Bg2 {[%emt 0:00:07]} Bg4 {[%emt 0:00:06]} 4. O-O {[%emt 0:00:16]} e6
{[%emt 0:03:33]} 5. d3 {[%emt 0:01:01]} Bd6 {[%emt 0:02:11]} 6. e4 {[%emt 0:03:
26]} Nd7 {[%emt 0:01:16]} 7. h3 {[%emt 0:07:10]} Bxf3 {[%emt 0:02:28]} 8. Qxf3
{[%emt 0:00:55]} Ngf6 {[%emt 0:06:46]} 9. exd5 {[%emt 0:09:58]} cxd5 {[%emt 0:
09:16]} 10. c4 {[%emt 0:00:21]} O-O {[%emt 0:08:54]} 11. Nc3 {[%emt 0:00:26]}
Nb6 {[%emt 0:01:20]} 12. Bg5 {[%emt 0:02:45]} Be7 {[%emt 0:00:58]} 13. Bxf6 {
[%emt 0:05:27]} Bxf6 {[%emt 0:00:08]} 14. cxd5 {[%emt 0:00:04]} exd5 {[%emt 0:
09:52]} 15. Nxd5 {[%emt 0:09:04]} Bxb2 {[%emt 0:04:51]} 16. Rab1 {[%emt 0:04:
16]} Bd4 {[%emt 0:11:56]} 17. Qe4 {[%emt 0:04:48]} Bc5 {[%emt 0:12:28]} 18. d4
{[%emt 0:03:36]} Re8 {[%emt 0:13:05]} 19. Qc2 {[%emt 0:09:29]} Bxd4 {[%emt 0:
05:27]} 20. Rfd1 {[%emt 0:04:00]} Rc8 {[%emt 0:00:07]} 21. Qf5 {[%emt 0:00:53]}
g6 {[%emt 0:01:16]} 22. Qg4 {[%emt 0:17:06]} Bxf2+ {[%emt 0:00:07]} 23. Kxf2 {
[%emt 0:00:03]} Rc2+ {[%emt 0:00:50]} 24. Kg1 {[%emt 0:00:06]} Nxd5 {[%emt 0:
00:19]} 25. Bxd5 {[%emt 0:00:05]} Qc7 {[%emt 0:00:45]} 26. Rd3 {[%emt 0:00:48]}
Rc1+ {[%emt 0:00:28]} 27. Rxc1 {[%emt 0:00:12]} Qxc1+ {[%emt 0:00:05]} 28. Rd1
{[%emt 0:00:06]} Re1+ {[%emt 0:00:39]} 29. Rxe1 {[%emt 0:00:03]} Qxe1+ {
[%emt 0:00:06]} 30. Kh2 {[%emt 0:00:03]} Qd2+ {[%emt 0:00:05]} 31. Bg2 {
[%emt 0:00:03]} Qxa2 {[%emt 0:00:36]} 32. Qc8+ {[%emt 0:00:06]} Kg7 {[%emt 0:
00:04]} 33. Qxb7 {[%emt 0:00:05]} a5 {[%emt 0:00:15]} 34. g4 {[%emt 0:05:27]}
a4 {[%emt 0:01:23]} 35. Kg3 {[%emt 0:01:10]} Qb3+ {[%emt 0:00:23]} 36. Qxb3 {
[%emt 0:00:14]} axb3 {[%emt 0:00:04]} 37. Kf4 {[%emt 0:00:41]} b2 {[%emt 0:00:
51]} 38. Be4 {[%emt 0:00:06]} h6 {[%emt 0:00:30]} 39. Bb1 {[%emt 0:01:06]} f5 {
[%emt 0:00:28]} 40. Ke5 {[%emt 0:00:40]} fxg4 {[%emt 0:00:35]} 41. hxg4 {
[%emt 0:50:04]} g5 {[%emt 0:50:04]} 42. Kf5 {[%emt 0:00:27]} h5 {[%emt 0:00:06]
} 43. gxh5 {[%emt 0:00:14]} g4 {[%emt 0:00:05]} 44. Ke4 1/2-1/2

[Event "FIDE Womens Grand Swiss 2021"]
[Site "Riga"]
[Date "2021.10.28"]
[Round "2.13"]
[White "Stefanova, Antoaneta"]
[Black "Kamalidenova, Meruert"]
[Result "1-0"]
[ECO "E73"]
[WhiteElo "2475"]
[BlackElo "2339"]
[Annotator "ChessBase"]
[PlyCount "99"]
[EventDate "2021.10.27"]
[EventType "swiss"]
[EventCountry "LAT"]
[Tiebreak "Cut1 Buchholz+Sonneborn-Berger (Swiss)"]
[SourceTitle "playchess.com"]
[Source "ChessBase"]
[SourceQuality "1"]
[TimeControl "40/6000+30:20/3000+30:900+30"]

1. d4 {[%emt 0:10:04]} Nf6 {[%emt 0:10:05]} 2. c4 {[%emt 0:00:09]} g6 {[%emt 0:
00:07]} 3. Nc3 {[%emt 0:00:07]} Bg7 {[%emt 0:00:07]} 4. e4 {[%emt 0:00:07]} d6
{[%emt 0:00:05]} 5. Be2 {[%emt 0:00:18]} O-O {[%emt 0:00:15]} 6. h4 {[%emt 0:
00:27]} c5 {[%emt 0:03:23]} 7. d5 {[%emt 0:00:30]} e6 {[%emt 0:00:43]} 8. h5 {
[%emt 0:01:21]} exd5 {[%emt 0:01:15]} 9. exd5 {[%emt 0:00:06]} Re8 {[%emt 0:02:
26]} 10. h6 {[%emt 0:00:53]} Bh8 {[%emt 0:01:17]} 11. Bg5 {[%emt 0:02:22]} Qb6
{[%emt 0:02:19]} 12. b3 {[%emt 0:02:21]} Bf5 {[%emt 0:06:41]} 13. Rc1 {[%emt 0:
20:33]} Nbd7 {[%emt 0:10:14]} 14. Kf1 {[%emt 0:04:24]} Ne5 {[%emt 0:06:54]} 15.
Rh4 {[%emt 0:06:48]} Qa5 {[%emt 0:06:11]} 16. Nb5 {[%emt 0:06:55]} Qb6 {
[%emt 0:04:41]} 17. g4 {[%emt 0:09:38]} Bc8 {[%emt 0:05:08]} 18. Nc3 {[%emt 0:
09:52]} Nfd7 {[%emt 0:05:53]} 19. Bd2 {[%emt 0:02:54]} Qd8 {[%emt 0:03:57]} 20.
Rh2 {[%emt 0:02:44]} f5 {[%emt 0:08:57]} 21. gxf5 {[%emt 0:04:35]} gxf5 {
[%emt 0:00:52]} 22. Bh5 {[%emt 0:14:30]} Re7 {[%emt 0:04:45]} 23. Rg2+ {
[%emt 0:05:20]} Kf8 {[%emt 0:02:06]} 24. Nf3 {[%emt 0:00:25]} a6 {[%emt 0:07:
59]} 25. Nxe5 {[%emt 0:02:15]} Nxe5 {[%emt 0:03:14]} 26. Bg5 {[%emt 0:00:40]}
Qc7 {[%emt 0:02:51]} 27. Qd2 {[%emt 0:00:27]} Rf7 {[%emt 0:01:42]} 28. Ne2 {
[%emt 0:01:02]} b5 {[%emt 0:04:10]} 29. Nf4 {[%emt 0:01:02]} Rf6 {[%emt 0:02:
43]} 30. Ne6+ {[%emt 0:01:28]} Rxe6 {[%emt 0:01:13]} 31. dxe6 {[%emt 0:00:04]}
Bxe6 {[%emt 0:00:08]} 32. Re1 {[%emt 0:00:12]} Qd7 {[%emt 0:01:11]} 33. f4 {
[%emt 0:00:41]} Ng6 {[%emt 0:00:45]} 34. Rge2 {[%emt 0:00:56]} Re8 {[%emt 0:01:
02]} 35. Bf3 {[%emt 0:00:34]} Bd4 {[%emt 0:01:25]} 36. Qd3 {[%emt 0:00:40]} Bf7
{[%emt 0:00:58]} 37. Rxe8+ {[%emt 0:00:30]} Bxe8 {[%emt 0:00:01]} 38. Bd5 {
[%emt 0:00:10]} Bf7 {[%emt 0:00:53]} 39. Qf3 {[%emt 0:00:04]} Be8 {[%emt 0:00:
53]} 40. Be6 {[%emt 0:00:58]} Qc7 {[%emt 0:00:16]} 41. Bxf5 {[%emt 0:51:23]}
bxc4 {[%emt 0:23:49]} 42. Rxe8+ {[%emt 0:00:00]} Kxe8 {[%emt 0:00:17]} 43. Qa8+
{[%emt 0:00:00]} Kf7 {[%emt 0:00:23]} 44. Qd5+ {[%emt 0:00:00]} Ke8 {[%emt 0:
04:21]} 45. Be6 {[%emt 0:00:00]} Qb8 {[%emt 0:01:26]} 46. Qc6+ {[%emt 0:00:00]}
Kf8 {[%emt 0:00:26]} 47. Qd7 {[%emt 0:00:00]} Qe8 {[%emt 0:01:13]} 48. Qxd6+ {
[%emt 0:00:00]} Ne7 {[%emt 0:00:06]} 49. Bxc4 {[%emt 0:00:00]} a5 {[%emt 0:00:
20]} 50. Qe6 {[%emt 0:00:00]} 1-0

[Event "FIDE Womens Grand Swiss 2021"]
[Site "Riga"]
[Date "2021.10.28"]
[Round "2.14"]
[White "Arabidze, Meri"]
[Black "Vantika Agrawal"]
[Result "1/2-1/2"]
[ECO "A05"]
[WhiteElo "2441"]
[BlackElo "2322"]
[Annotator "NA"]
[PlyCount "86"]
[EventDate "2021.10.27"]
[EventType "swiss"]
[EventCountry "LAT"]
[Tiebreak "Cut1 Buchholz+Sonneborn-Berger (Swiss)"]
[SourceTitle "playchess.com"]
[Source "ChessBase"]
[SourceQuality "1"]
[TimeControl "40/6000+30:20/3000+30:900+30"]

1. Nf3 {[%emt 0:10:08]} Nf6 {[%emt 0:10:46]} 2. g3 {[%emt 0:00:09]} g6 {
[%emt 0:00:28]} 3. b3 {[%emt 0:00:09]} Bg7 {[%emt 0:00:33]} 4. Bb2 {[%emt 0:00:
03]} d6 {[%emt 0:00:29]} 5. d4 {[%emt 0:00:15]} c5 {[%emt 0:00:38]} 6. Bg2 {
[%emt 0:00:52]} cxd4 {[%emt 0:00:59]} 7. Nxd4 {[%emt 0:00:08]} d5 {[%emt 0:00:
59]} 8. O-O {[%emt 0:01:03]} O-O {[%emt 0:00:14]} 9. c4 {[%emt 0:00:18]} dxc4 {
[%emt 0:01:23]} 10. bxc4 {[%emt 0:00:02]} Qb6 {[%emt 0:00:15]} 11. Qb3 {
[%emt 0:00:13] 11.Qc1 is more advanced technology.} Nfd7 {[%emt 0:00:33]} 12.
e3 {[%emt 0:00:38]} e5 {[%emt 0:03:11]} 13. Nb5 {[%emt 0:03:58]} Nc5 {[%emt 0:
03:49]} 14. Qa3 {[%emt 0:00:09]} Be6 {[%emt 0:02:26]} 15. Nd2 {[%emt 0:01:24]}
Rd8 {[%emt 0:06:55]} 16. Bc3 {[%emt 0:00:34]} Rd7 {[%emt 0:00:39] [#]} 17. Ba5
$146 {[%emt 0:11:36]} ({Predecessor:} 17. Rab1 Bf8 18. Nd4 Qd8 19. Nxe6 Nxe6
20. Qc1 Nc5 21. Qc2 Nc6 22. Ne4 Nd3 23. Rfd1 {1/2-1/2 (29) Arutinian,D (2536)
-Piorun,K (2653) Batumi 2018}) 17... Qa6 {[%emt 0:02:47]} 18. Qxc5 {[%emt 0:01:
50]} Qxa5 {[%emt 0:01:13]} 19. Qc8+ {[%emt 0:07:09]} Bf8 {[%emt 0:12:24]} 20.
Nb3 {[%emt 0:09:27]} Qb6 $11 {[%emt 0:07:56]} 21. a4 {[%emt 0:10:55]} Re7 {
[%emt 0:13:22]} 22. Qc5 {[%emt 0:05:15]} Na6 {[%emt 0:21:55]} 23. Qxb6 {
[%emt 0:03:08]} axb6 {[%emt 0:00:05]} 24. Bd5 {[%emt 0:00:51]} Bh3 {[%emt 0:01:
16]} 25. Rfb1 {[%emt 0:05:02]} Rd7 {[%emt 0:01:28]} 26. Nc3 {[%emt 0:05:15]}
Nb4 {[%emt 0:07:57]} 27. Nd2 {[%emt 0:05:29]} Kg7 {[%emt 0:01:21]} 28. Rb3 {
[%emt 0:05:54]} Rc8 {[%emt 0:03:42]} 29. Rab1 {[%emt 0:03:51]} Nxd5 {[%emt 0:
00:19]} 30. Nxd5 {[%emt 0:01:29]} Bc5 {[%emt 0:00:28]} 31. Ne4 {[%emt 0:09:02]}
Bf5 {[%emt 0:01:00]} 32. Nxc5 {[%emt 0:01:49]} Rxc5 {[%emt 0:00:10]} 33. Nxb6 {
[%emt 0:01:41]} Rd6 {[%emt 0:00:54]} 34. Ra1 {[%emt 0:00:34]} Be6 {[%emt 0:03:
47]} 35. Rb4 {[%emt 0:01:21]} h5 {[%emt 0:00:48]} 36. Kg2 {[%emt 0:02:09]} e4 {
[%emt 0:00:23]} 37. h3 {[%emt 0:01:53]} Rd2 {[%emt 0:00:42]} 38. Rb5 {[%emt 0:
01:30]} Rc6 {[%emt 0:00:29]} 39. a5 {[%emt 0:00:53]} Bxc4 {[%emt 0:00:33]} 40.
Nxc4 {[%emt 0:00:32]} Rxc4 {[%emt 0:00:06]} 41. Rxb7 {[%emt 0:50:20]} Rcc2 {
[%emt 0:50:23]} 42. Rf1 {[%emt 0:00:06]} Ra2 {[%emt 0:00:00]} 43. Re7 {[%emt 0:
00:00]} Ra4 {[%emt 0:00:00]} 1/2-1/2

[Event "FIDE Womens Grand Swiss 2021"]
[Site "Riga"]
[Date "2021.10.28"]
[Round "2.16"]
[White "Buksa, Nataliya"]
[Black "Zawadzka, Jolanta"]
[Result "1/2-1/2"]
[ECO "C65"]
[WhiteElo "2409"]
[BlackElo "2428"]
[Annotator "NA"]
[PlyCount "86"]
[EventDate "2021.10.27"]
[EventType "swiss"]
[EventCountry "LAT"]
[Tiebreak "Cut1 Buchholz+Sonneborn-Berger (Swiss)"]
[SourceTitle "playchess.com"]
[Source "ChessBase"]
[SourceQuality "1"]
[TimeControl "40/6000+30:20/3000+30:900+30"]

1. e4 {[%emt 0:10:03]} e5 {[%emt 0:10:08]} 2. Nf3 {[%emt 0:00:05]} Nc6 {
[%emt 0:00:03]} 3. Bb5 {[%emt 0:00:10]} Nf6 {[%emt 0:00:07]} 4. d3 {[%emt 0:01:
04]} Bc5 $11 {[%emt 0:00:08]} 5. Bxc6 {[%emt 0:00:05]} dxc6 {[%emt 0:00:07]} 6.
O-O {[%emt 0:00:06]} Qe7 {[%emt 0:00:21]} 7. Nbd2 {[%emt 0:00:27]} Bg4 {
[%emt 0:00:29]} 8. h3 {[%emt 0:00:03]} Bh5 {[%emt 0:00:15]} 9. a3 {[%emt 0:00:
03]} Nd7 {[%emt 0:17:31]} 10. Nc4 {[%emt 0:01:10]} f6 {[%emt 0:03:14]} 11. b4 {
[%emt 0:05:28]} Bb6 {[%emt 0:09:33]} 12. Be3 {[%emt 0:07:29]} O-O {[%emt 0:05:
56]} 13. Qe2 {[%emt 0:18:43]} Rfd8 {[%emt 0:06:26]} 14. c3 {[%emt 0:18:07]} Nf8
{[%emt 0:06:36]} 15. a4 {[%emt 0:01:59]} Bxf3 {[%emt 0:06:36]} 16. Qxf3 {
[%emt 0:02:09]} Rxd3 {[%emt 0:02:19]} 17. Qe2 {[%emt 0:00:03]} Rd7 {[%emt 0:10:
23]} 18. Bc1 {[%emt 0:18:16]} a5 {[%emt 0:03:15]} 19. b5 {[%emt 0:00:34]} cxb5
{[%emt 0:03:50]} 20. Nxb6 {[%emt 0:01:12]} cxb6 {[%emt 0:00:07]} 21. Qxb5 {
[%emt 0:00:56]} Qe6 {[%emt 0:03:44]} 22. Be3 {[%emt 0:05:12]} Rd6 {[%emt 0:00:
30]} 23. Rab1 {[%emt 0:01:22]} Nd7 {[%emt 0:00:57]} 24. Rfd1 {[%emt 0:00:07]}
Rc8 {[%emt 0:06:22]} 25. Rxd6 {[%emt 0:04:28]} Qxd6 {[%emt 0:00:02]} 26. Qb3+ {
[%emt 0:00:03]} Kf8 {[%emt 0:03:10]} 27. Rd1 {[%emt 0:04:19]} Qc6 {[%emt 0:00:
53]} 28. Bc1 {[%emt 0:00:03]} Nc5 {[%emt 0:06:22]} 29. Ba3 {[%emt 0:00:03]} g5
{[%emt 0:01:30]} 30. Rd5 {[%emt 0:08:39]} Kg7 {[%emt 0:00:41]} 31. Bxc5 {
[%emt 0:00:04]} bxc5 {[%emt 0:00:04]} 32. Qd1 {[%emt 0:00:01]} Rc7 {[%emt 0:02:
42]} 33. h4 {[%emt 0:01:15]} h6 {[%emt 0:01:02]} 34. hxg5 {[%emt 0:00:19]} hxg5
{[%emt 0:00:02]} 35. Qg4 {[%emt 0:01:26]} Qxa4 {[%emt 0:01:08]} 36. Rd8 {
[%emt 0:00:18]} Qc2 {[%emt 0:01:02]} 37. f3 {[%emt 0:02:34]} Qc1+ {[%emt 0:00:
31]} 38. Kf2 {[%emt 0:00:03]} Qc2+ {[%emt 0:00:15]} 39. Kg3 {[%emt 0:00:54]}
Qc1 {[%emt 0:01:01]} 40. Rd7+ {[%emt 0:00:13]} Rxd7 {[%emt 0:00:06]} 41. Qxd7+
{[%emt 0:50:02]} Kh6 {[%emt 0:22:25]} 42. Qh3+ {[%emt 0:00:00]} Kg7 {[%emt 0:
00:16]} 43. Qd7+ {[%emt 0:00:00]} Kh6 {[%emt 0:00:14]} 1/2-1/2

[Event "FIDE Womens Grand Swiss 2021"]
[Site "Riga"]
[Date "2021.10.28"]
[Round "2.17"]
[White "Cori T., Deysi"]
[Black "Abdumalik, Zhansaya"]
[Result "0-1"]
[ECO "A05"]
[WhiteElo "2382"]
[BlackElo "2507"]
[Annotator "ChessBase"]
[PlyCount "78"]
[EventDate "2021.10.27"]
[EventType "swiss"]
[EventCountry "LAT"]
[Tiebreak "Cut1 Buchholz+Sonneborn-Berger (Swiss)"]
[SourceTitle "playchess.com"]
[Source "ChessBase"]
[SourceQuality "1"]
[TimeControl "40/6000+30:20/3000+30:900+30"]

1. Nf3 {[%emt 0:10:04]} Nf6 {[%emt 0:10:10]} 2. c4 {[%emt 0:00:17]} e6 {
[%emt 0:02:40]} 3. g3 {[%emt 0:02:55]} d5 {[%emt 0:04:45]} 4. Bg2 {[%emt 0:00:
10]} d4 {[%emt 0:01:47]} 5. O-O {[%emt 0:05:00]} c5 {[%emt 0:02:51]} 6. b4 {
[%emt 0:05:28]} cxb4 {[%emt 0:03:12]} 7. e3 {[%emt 0:00:01]} dxe3 {[%emt 0:07:
58]} 8. fxe3 {[%emt 0:00:03]} Qc7 {[%emt 0:00:47]} 9. Qe2 {[%emt 0:13:43]} Nbd7
{[%emt 0:03:15]} 10. a3 {[%emt 0:08:36]} Nb6 {[%emt 0:12:44]} 11. d3 {[%emt 0:
01:33]} e5 {[%emt 0:00:58]} 12. Qb2 {[%emt 0:16:26]} e4 {[%emt 0:03:12]} 13.
Nd4 {[%emt 0:00:08]} exd3 {[%emt 0:14:02]} 14. Nb5 {[%emt 0:02:55]} Qxc4 {
[%emt 0:03:38]} 15. Qe5+ {[%emt 0:00:53]} Kd8 {[%emt 0:00:46]} 16. Bb2 {
[%emt 0:14:16]} Nbd7 {[%emt 0:09:32]} 17. Qf5 {[%emt 0:01:35]} Be7 {[%emt 0:05:
08]} 18. Nd4 {[%emt 0:17:00]} Nb6 {[%emt 0:00:16]} 19. Qf3 {[%emt 0:01:27]} b3
{[%emt 0:09:07]} 20. Rc1 {[%emt 0:01:06]} Qa6 {[%emt 0:02:12]} 21. Nf5 {
[%emt 0:04:52]} Na4 {[%emt 0:05:10]} 22. Nxe7 {[%emt 0:01:56]} Nxb2 {[%emt 0:
00:47]} 23. Nd5 {[%emt 0:00:14]} Na4 {[%emt 0:03:21]} 24. Qf4 {[%emt 0:00:02]}
Nxd5 {[%emt 0:01:30]} 25. Bxd5 {[%emt 0:00:01]} Qb6 {[%emt 0:02:30]} 26. Nc3 {
[%emt 0:00:06]} b2 {[%emt 0:00:21]} 27. Nxa4 {[%emt 0:00:01]} bxa1=Q {[%emt 0:
00:15]} 28. Rxa1 {[%emt 0:00:30]} Qf6 {[%emt 0:00:13]} 29. Qxf6+ {[%emt 0:02:
04]} gxf6 {[%emt 0:00:01]} 30. Nc5 {[%emt 0:00:36]} Ke7 {[%emt 0:00:37]} 31.
Nxd3 {[%emt 0:00:26]} Rd8 {[%emt 0:00:45]} 32. Nf4 {[%emt 0:00:07]} Rb8 {
[%emt 0:00:25]} 33. Kf2 {[%emt 0:01:32]} Be6 {[%emt 0:00:41]} 34. e4 {[%emt 0:
00:04]} b5 {[%emt 0:00:47]} 35. Ke3 {[%emt 0:00:35]} Rbc8 {[%emt 0:00:17]} 36.
Rb1 {[%emt 0:00:17]} a6 {[%emt 0:00:29]} 37. a4 {[%emt 0:00:12]} Rc3+ {[%emt 0:
00:14]} 38. Ke2 {[%emt 0:00:34]} Rc2+ {[%emt 0:01:15]} 39. Kd3 {[%emt 0:00:20]}
Rc5 {[%emt 0:00:26]} 0-1